fUST/lending_fUST_20260204
["ID","MTS","AMOUNT","RATE_DAILY","PERIOD"]
[404431488,1770135561279,158.75349077,0.00013699,2]
[404431489,1770135562387,254.63086843,0.00013273,2]
[404431490,1770135562734,500.0,0.00013699,2]
[404431491,1770135562790,1500.0,0.00014795,2]
[404431492,1770135562840,1000.0,0.00014247,2]
[404431493,1770135563650,500.0,0.00013699,2]
[404431494,1770135564478,600.0,0.00014221,2]
[404431495,1770135564582,300.0,0.00013673,2]
[404431496,1770135564636,900.0,0.00014768,2]
[404431497,1770135565015,1000.0,0.00013821,2]
[404431498,1770135565076,181.01556903,0.00013273,2]
[404431499,1770135565106,318.98443097,0.00013273,2]
[404431500,1770135565146,1500.0,0.00014368,2]
[404431501,1770135565183,2000.0,0.00014916,2]
[404431502,1770135573856,5000.0,0.00014998,2]
[404431503,1770135596902,1181.02556903,0.00014998,2]
[404431504,1770135603390,165.72224045,0.00013699,2]
[404431505,1770135603433,500.0,0.00013699,2]
[404431506,1770135603479,500.0,0.00013699,2]
[404431507,1770135603523,1000.0,0.00014247,2]
[404431508,1770135603565,227.70431209,0.00013699,2]
[404431509,1770135603609,500.0,0.00014247,2]
[404431510,1770135608693,500.0,0.00013273,2]
[404431511,1770135608745,1000.0,0.00013821,2]
[404431512,1770135608818,1500.0,0.00014368,2]
[404431513,1770135616393,500.0,0.00013699,2]
[404431514,1770135616444,1000.0,0.00014247,2]
[404431515,1770135616646,500.0,0.00013273,2]
[404431516,1770135616695,1000.0,0.00013821,2]
[404431517,1770135616780,500.0,0.00014368,2]
[404431518,1770135663606,500.0,0.00013273,2]
[404431519,1770135663639,106.58344746,0.00013273,2]
[404431520,1770135663668,396.83522559,0.00013273,2]
[404431521,1770135663701,900.30319952,0.00013821,2]
[404431522,1770135663737,501.7936861,0.00013699,2]
[404431523,1770135663773,645.23912938,0.00013273,2]
[404431524,1770135663814,500.0,0.00013699,2]
[404431525,1770135663848,500.0,0.00013699,2]
[404431526,1770135663880,501.44248155,0.00014247,2]
[404431527,1770135663920,504.04510864,0.00013273,2]
[404431528,1770135663953,1000.0,0.00014247,2]
[404431529,1770135665992,500.0,0.00013699,2]
[404431530,1770135667224,150.16357316,0.00013699,2]
[404431531,1770135667576,500.0,0.00013273,2]
[404431532,1770135667630,1000.0,0.00013821,2]
[404431533,1770135667692,1500.0,0.00014368,2]
[404431534,1770135667799,500.0,0.00013273,2]
[404431535,1770135667853,400.18759606,0.00013821,2]
[404431536,1770135667882,599.81240394,0.00013821,2]
[404431537,1770135667913,1500.0,0.00014368,2]
[404431538,1770135680977,1000.0,0.00014247,2]
[404431539,1770135681089,500.0,0.00013699,2]
[404431540,1770135681211,300.0,0.00013673,2]
[404431541,1770135681265,600.0,0.00014221,2]
[404431542,1770135681302,500.0,0.00013273,2]
[404431543,1770135681343,1000.0,0.00013821,2]
[404431544,1770135681387,1500.0,0.00014368,2]
[404431545,1770135722681,177.92730987,0.00014276,2]
[404431546,1770135723766,500.0,0.00013699,2]
[404431547,1770135723800,1000.0,0.00014247,2]
[404431548,1770135724349,613.6719324,0.00013699,2]
[404431549,1770135726584,193.07091359,0.00014276,2]
[404431550,1770135727394,500.0,0.00013699,2]
[404431551,1770135730398,326.84602382,0.00013273,2]
[404431552,1770135730610,488.50652582,0.00013273,2]
[404431553,1770135732301,286.37602055,0.00013273,2]
[404431554,1770135734344,500.0,0.00013699,2]
[404431555,1770135735230,500.0,0.00013699,2]
[404431556,1770135736959,500.0,0.00013699,2]
[404431557,1770135737023,1000.0,0.00014247,2]
[404431558,1770135737188,500.0,0.00013273,2]
[404431559,1770135737240,1000.0,0.00013821,2]
[404431560,1770135737300,1500.0,0.00014368,2]
[404431561,1770135783432,413.61127395,0.00013699,2]
[404431562,1770135783462,86.38872605,0.00013699,2]
[404431563,1770135783601,500.0,0.00013699,2]
[404431564,1770135783638,1000.0,0.00014247,2]
[404431565,1770135783684,1000.0,0.00014247,2]
[404431566,1770135783732,300.0,0.00014221,2]
[404431567,1770135783778,150.0,0.00013673,2]
[404431568,1770135784123,500.0,0.00013699,2]
[404431569,1770135784163,305.19550882,0.00013699,2]
[404431570,1770135784196,934.85355421,0.00014247,2]
[404431571,1770135785742,500.0,0.00013699,2]
[404431572,1770135785794,1000.0,0.00014247,2]
[404431573,1770135788039,500.0,0.00013699,2]
[404431574,1770135788391,357.38498917,0.00013699,2]
[404431575,1770135793337,2866.18722175,0.00014501,2]
[404431576,1770135793367,2133.81277825,0.00014501,2]
[404431577,1770135800885,495.79253841,0.00013273,2]
[404431578,1770135800924,500.0,0.00013699,2]
[404431579,1770135801001,300.0,0.00013673,2]
[404431580,1770135801037,1000.0,0.00014247,2]
[404431581,1770135801078,600.0,0.00014221,2]
[404431582,1770135816224,4970.40468334,0.00014501,2]
[404431583,1770135816260,29.59531666,0.00014501,2]
[404431584,1770135840605,5000.0,0.00014501,2]
[404431585,1770135844054,160.36743751,0.00013699,2]
[404431586,1770135847390,500.0,0.00013273,2]
[404431587,1770135847441,1000.0,0.00013821,2]
[404431588,1770135847618,500.0,0.00013273,2]
[404431589,1770135847683,1000.0,0.00013821,2]
[404431590,1770135847722,361.13333414,0.00014368,2]
[404431591,1770135857310,500.0,0.00013699,2]
[404431592,1770135857353,948.91391169,0.00014247,2]
[404431593,1770135857389,52.71321181,0.00014247,2]
[404431595,1770135857938,500.0,0.00013699,2]
[404431596,1770135858005,1000.0,0.00014247,2]
[404431597,1770135858388,500.0,0.00013273,2]
[404431598,1770135858427,1000.0,0.00013821,2]
[404431599,1770135858468,500.0,0.00014368,2]
[404431600,1770135863015,5000.0,0.00014501,2]
[404431601,1770135903980,500.0,0.00013699,2]
[404431602,1770135904019,500.0,0.00014247,2]
[404431603,1770135904058,500.0,0.00013699,2]
[404431604,1770135904100,1000.0,0.00014247,2]
[404431605,1770135904367,500.0,0.00013273,2]
[404431606,1770135904408,1500.0,0.00014368,2]
[404431607,1770135904829,500.0,0.00013699,2]
[404431608,1770135904883,1000.0,0.00014247,2]
[404431609,1770135904933,500.0,0.00013273,2]
[404431610,1770135904990,1000.0,0.00013821,2]
[404431611,1770135905089,1500.0,0.00014368,2]
[404431612,1770135905745,500.0,0.00013699,2]
[404431613,1770135905780,500.01,0.00013273,2]
[404431614,1770135905809,0.46862855,0.00013273,2]
[404431615,1770135905917,237.12560796,0.00014247,2]
[404431616,1770135906213,500.0,0.00013699,2]
[404431617,1770135906261,1000.0,0.00014247,2]
[404431618,1770135910106,1000.0,0.00013821,2]
[404431619,1770135913405,619.58988389,0.00013273,2]
[404431620,1770135914261,500.0,0.00013699,2]
[404431621,1770135914315,1000.0,0.00014247,2]
[404431622,1770135916793,500.0,0.00013273,2]
[404431623,1770135916850,1000.0,0.00013821,2]
[404431624,1770135916900,1440.87186449,0.00014368,2]
[404431625,1770135921385,500.0,0.00013699,2]
[404431626,1770135921445,1000.0,0.00014247,2]
[404431627,1770135921702,300.0,0.00013673,2]
[404431628,1770135921757,300.0,0.00014221,2]
[404431629,1770135921965,101.95401511,0.00013273,2]
[404431630,1770135921996,398.04598489,0.00013273,2]
[404431631,1770135922041,1000.0,0.00013821,2]
[404431632,1770135922099,1061.22050956,0.00014368,2]
[404431633,1770135963361,299.9295039,0.00013699,2]
[404431634,1770135963396,1116.61497936,0.00014247,2]
[404431635,1770135966440,500.0,0.00013273,2]
[404431636,1770135966494,1000.0,0.00013821,2]
[404431637,1770135966546,1500.0,0.00014368,2]
[404431638,1770135966770,461.77578399,0.00013273,2]
[404431639,1770135967067,1000.0,0.00013973,2]
[404431640,1770135967310,500.0,0.00013273,2]
[404431641,1770135967357,1000.0,0.00013821,2]
[404431642,1770135967400,162.4232383,0.00014368,2]
[404431643,1770135967429,1337.5767617,0.00014368,2]
[404431644,1770135967472,500.0,0.00013273,2]
[404431645,1770135967512,1000.0,0.00013821,2]
[404431646,1770135967558,876.33519535,0.00014368,2]
[404431647,1770135967601,500.0,0.00013273,2]
[404431648,1770135967636,1000.0,0.00013821,2]
[404431649,1770135967676,1402.44473517,0.00014368,2]
[404431650,1770135967937,205.1489348,0.00013789,2]
[404431651,1770135968442,500.0,0.00013699,2]
[404431652,1770135980393,500.0,0.00013699,2]
[404431653,1770135984431,9500.01,0.00013783,2]
[404431654,1770135984461,7195.4750329,0.00013783,2]
[404431655,1770136024031,500.0,0.00013273,2]
[404431656,1770136024065,500.6948387,0.00013699,2]
[404431657,1770136024362,500.0,0.00013273,2]
[404431658,1770136024855,231.28910366,0.00013699,2]
[404431659,1770136026415,500.0,0.00013699,2]
[404431660,1770136026533,500.0,0.00013699,2]
[404431661,1770136026642,72.55102474,0.00013699,2]
[404431662,1770136026672,389.75264011,0.00013699,2]
[404431663,1770136026815,500.0,0.00013699,2]
[404431664,1770136026947,500.0,0.00013699,2]
[404431665,1770136027043,500.0,0.00013273,2]
[404431666,1770136027605,500.0,0.00013273,2]
[404431667,1770136027642,500.0,0.00013273,2]
[404431668,1770136035295,500.0,0.00013699,2]
[404431669,1770136041253,500.0,0.00013699,2]
[404431670,1770136041960,500.0,0.00013273,2]
[404431672,1770136082176,1818.60288684,0.00013814,2]
[404431673,1770136087964,179.44107587,0.00013699,2]
[404431674,1770136087999,500.0,0.00013273,2]
[404431675,1770136091098,1930.78924368,0.0001,2]
[404431676,1770136095070,500.0,0.00013273,2]
[404431677,1770136098264,500.0,0.00013699,2]
[404431678,1770136099186,181.4241535,0.0001,2]
[404431679,1770136099216,108.33377265,0.0001,2]
[404431680,1770136108400,1000.0,0.0001,2]
[404431684,1770136114957,8891.67622735,0.0001,2]
[404431685,1770136114996,7953.65649876,0.0001,2]
[404431686,1770136115383,784.67488547,0.0001,2]
[404431687,1770136118063,1261.67861577,0.000135,2]
[404431688,1770136118097,2824.18985558,0.000135,2]
[404431689,1770136118180,3789.85,0.0001369,2]
[404431690,1770136119706,500.48360225,6.546e-05,2]
[404431691,1770136127771,2885.48654217,0.00013698,2]
[404431692,1770136127806,2114.51345783,0.00013698,2]
[404431693,1770136142952,500.0,0.00013273,2]
[404431694,1770136142988,500.0,0.00013273,2]
[404431695,1770136143071,500.0,0.00013273,2]
[404431696,1770136143169,500.0,0.00013273,2]
[404431697,1770136149835,582.74233251,0.00013273,2]
[404431698,1770136150668,4655.32568359,0.00013698,2]
[404431699,1770136160861,158.81622736,0.00013273,2]
[404431700,1770136208731,488.61229871,0.00013273,2]
[404431701,1770136208761,11.38770129,0.00013273,2]
[404431702,1770136208803,500.0,0.00013273,2]
[404431703,1770136217690,500.0,0.00013273,2]
[404431704,1770136218267,500.0,0.00013273,2]
[404431705,1770136218396,500.0,0.00013273,2]
[404431739,1770136232568,-300.0,0.00013698,2]
[404431741,1770136232577,-300.0,0.00013698,2]
[404431743,1770136232586,-300.0,0.00013698,2]
[404431745,1770136232595,-300.0,0.00013698,2]
[404431747,1770136232605,-300.0,0.00013698,2]
[404431749,1770136232614,-93.96474608,0.00013698,2]
[404431751,1770136232625,-521.03525392,0.00013698,2]
[404431753,1770136232635,-1200.0,0.00013698,2]
[404431755,1770136232645,-2906.9858968,0.00013699,2]
[404431757,1770136232656,-2099.62563783,0.00013699,2]
[404431809,1770136239249,-14892.81657527,0.00013699,2]
[404431811,1770136239259,-500.0,0.00013699,2]
[404431813,1770136239269,-500.0,0.00013699,2]
[404431814,1770136239278,-500.0,0.00013699,2]
[404431816,1770136239287,-500.0,0.00013699,2]
[404431818,1770136239296,-500.0,0.00013699,2]
[404431820,1770136239305,-500.0,0.00013699,2]
[404431822,1770136239314,-500.0,0.00013699,2]
[404431824,1770136239323,-500.0,0.00013699,2]
[404431825,1770136239332,-500.0,0.00013699,2]
[404431827,1770136239341,-500.0,0.00013699,2]
[404431829,1770136239350,-502.26914519,0.00013699,2]
[404431831,1770136239360,-500.0,0.00013699,2]
[404431833,1770136239369,-500.0,0.00013699,2]
[404431834,1770136239378,-500.0,0.00013699,2]
[404431843,1770136239465,-591.06797189,0.00013699,2]
[404431845,1770136239475,-422.13878715,0.00013699,2]
[404431847,1770136239484,-500.0,0.00013699,2]
[404431849,1770136239493,-509.35129804,0.00013699,2]
[404431850,1770136239503,-500.0,0.00013699,2]
[404431852,1770136239512,-532.14555202,0.00013699,2]
[404431854,1770136239521,-500.0,0.00013699,2]
[404431856,1770136239530,-485.91457631,0.00013699,2]
[404431858,1770136239539,-501.63013071,0.00013699,2]
[404431859,1770136239548,-500.81069172,0.00013699,2]
[404431861,1770136239557,-500.0,0.00013699,2]
[404431863,1770136239567,-219.79407311,0.00013759,2]
[404431865,1770136239576,-1004.02096121,0.00013821,2]
[404431867,1770136239585,-1000.0,0.00013821,2]
[404431868,1770136239595,-1000.0,0.00013821,2]
[404431870,1770136239605,-1000.0,0.00013821,2]
[404431872,1770136239614,-1000.0,0.00013821,2]
[404431874,1770136239623,-1000.0,0.00013821,2]
[404431876,1770136239633,-1000.0,0.00013821,2]
[404431878,1770136239642,-500.0,0.00013821,2]
[404431879,1770136239651,-1000.0,0.00013821,2]
[404431881,1770136239660,-1000.0,0.00013821,2]
[404431883,1770136239669,-1076.06117804,0.00013821,2]
[404431885,1770136239679,-1000.0,0.00013821,2]
[404431887,1770136239687,-470.30689096,0.00013821,2]
[404431888,1770136239697,-1000.0,0.00013821,2]
[404431890,1770136239708,-3677.82662504,0.00013848,2]
[404431892,1770136239720,-300.0,0.00013848,2]
[404431894,1770136239731,-4652.66531116,0.00013848,2]
[404431896,1770136239741,-157.18314866,0.0001388,2]
[404431898,1770136239750,-311.21876341,0.00014021,2]
[404431900,1770136239760,-733.2144593,0.00014022,2]
[404431902,1770136239771,-375.29864835,0.00014022,2]
[404431904,1770136239782,-488.57536421,0.00014022,2]
[404431977,1770136240854,-509.31554431,0.00014022,2]
[404432547,1770136246977,-1437.1938843,0.00014022,2]
[404432549,1770136246989,-4340.25097196,0.00014022,2]
[404432552,1770136247000,-300.0,0.00014123,2]
[404432554,1770136247010,-300.0,0.00014123,2]
[404432556,1770136247020,-300.0,0.00014123,2]
[404432558,1770136247030,-300.0,0.00014123,2]
[404432560,1770136247040,-300.0,0.00014123,2]
[404432562,1770136247049,-300.0,0.00014123,2]
[404432564,1770136247059,-300.0,0.00014123,2]
[404432566,1770136247068,-300.0,0.00014123,2]
[404432568,1770136247078,-300.0,0.00014123,2]
[404432570,1770136247087,-32.25328032,0.00014123,2]
[404432579,1770136247164,-267.74671968,0.00014123,2]
[404432581,1770136247174,-300.0,0.00014123,2]
[404432583,1770136247184,-300.0,0.00014123,2]
[404432585,1770136247194,-300.0,0.00014123,2]
[404432587,1770136247204,-244.20685221,0.00014123,2]
[404432696,1770136254026,-55.79314779,0.00014123,2]
[404432697,1770136254036,-300.0,0.00014123,2]
[404432698,1770136254045,-342.50340661,0.00014247,2]
[404432699,1770136254058,-60.17186043,0.00014247,2]
[404432700,1770136254067,-1006.1641996,0.00014247,2]
[404432701,1770136254142,-1000.0,0.00014247,2]
[404432702,1770136254152,-500.45037706,0.00014247,2]
[404432703,1770136254161,-1000.0,0.00014247,2]
[404432704,1770136254174,-1000.0,0.00014247,2]
[404432705,1770136254183,-807.28407351,0.00014247,2]
[404432706,1770136254194,-192.71592649,0.00014247,2]
[404432707,1770136254204,-200.91514514,0.00014247,2]
[404432708,1770136254215,-799.08485486,0.00014247,2]
[404432709,1770136254226,-250.0,0.00014323,2]
[404432710,1770136254236,-1500.0,0.00014368,2]
[404432711,1770136254248,-1500.0,0.00014368,2]
[404432712,1770136254258,-1500.0,0.00014368,2]
[404432713,1770136254267,-1500.0,0.00014368,2]
[404432714,1770136254276,-1500.0,0.00014368,2]
[404432715,1770136254285,-1376.75179994,0.00014368,2]
[404432716,1770136254295,-1500.0,0.00014368,2]
[404432717,1770136254303,-214.72667318,0.00014368,2]
[404432718,1770136254312,-1500.0,0.00014368,2]
[404432719,1770136254322,-1500.0,0.00014368,2]
[404432720,1770136254331,-1000.79142467,0.00014384,2]
[404432721,1770136254341,-600.0,0.00014404,2]
[404432722,1770136254354,-1480.51097144,0.00014695,2]
[404432723,1770136254364,-300.16676177,0.00014768,2]
[404432724,1770136254374,-501.06198753,0.00014795,2]
[404432725,1770136254383,-250.08643803,0.00014795,2]
[404432726,1770136254392,-255.37586411,0.00014795,2]
[404432727,1770136254403,-1500.0,0.00014795,2]
[404432728,1770136254412,-1011.10142396,0.00014795,2]
[404432729,1770136254421,-656.17257091,0.00014795,2]
[404432730,1770136254431,-320.12567473,0.00014795,2]
[404432731,1770136254440,-721.18889317,0.00014795,2]
[404432732,1770136254453,-917.36067918,0.00014795,2]
[404432733,1770136254462,-1500.0,0.00014795,2]
[404432734,1770136254471,-1231.88370602,0.00014795,2]
[404432735,1770136254480,-1500.0,0.00014795,2]
[404432736,1770136254489,-1500.0,0.00014795,2]
[404432737,1770136254499,-677.10262022,0.00014795,2]
[404432738,1770136254508,-1500.0,0.00014795,2]
[404432739,1770136254517,-2000.0,0.00014916,2]
[404432740,1770136254526,-2000.0,0.00014916,2]
[404432741,1770136254536,-2000.0,0.00014916,2]
[404432742,1770136254546,-2000.0,0.00014916,2]
[404432743,1770136254556,-548.25638553,0.00014916,2]
[404432744,1770136254565,-960.76318497,0.00014916,2]
[404432745,1770136254574,-1606.78662408,0.00014916,2]
[404432746,1770136264150,500.0,0.00013273,2]
[404432747,1770136264261,500.0,0.00013273,2]
[404432752,1770136322845,300.0,0.00013697,2]
[404432768,1770136383483,500.0,0.00013273,2]
[404432769,1770136383521,222.8707806,0.00013273,2]
[404432775,1770136387177,500.0,0.00013273,2]
[404432776,1770136387223,500.0,0.00013273,2]
[404432802,1770136478851,400.091983,0.00012968,2]
[404432803,1770136496665,543.0,0.00013698,2]
[404432804,1770136503739,265.043341,0.00013273,2]
[404432805,1770136504685,500.0,0.00013273,2]
[404432806,1770136509329,500.0,0.00013273,2]
[404432809,1770136564197,500.0,0.00013273,2]
[404432810,1770136623243,500.0,0.00013273,2]
[404432811,1770136626929,500.0,0.00013273,2]
[404432812,1770136627405,500.0,0.00013273,2]
[404432813,1770136681288,206.07,9.99e-05,2]
[404432840,1770136736397,551.54619411,0.00013619,2]
[404432841,1770136736420,6346.82156924,0.00013619,2]
[404432842,1770136747338,500.0,0.00013273,2]
[404432843,1770136748091,500.0,0.00013273,2]
[404432844,1770136748261,500.0,0.00013273,2]
[404432845,1770136756313,2153.18843076,0.00013698,2]
[404432846,1770136863738,500.0,0.00013273,2]
[404432847,1770136864718,500.0,0.00013273,2]
[404432848,1770136868280,500.0,0.00013273,2]
[404432889,1770136952755,5000.0,0.00013691,2]
[404432894,1770136975801,3500.01,0.00013691,2]
[404432896,1770137000844,505.58511194,0.00013273,2]
[404432897,1770137005431,9494.42488806,0.00012733,2]
[404432898,1770137005455,505.57511194,0.00012733,2]
[404432899,1770137009142,9494.43488806,0.0001,2]
[404432900,1770137009164,10000.01,0.0001,2]
[404432901,1770137009193,111724.62511194,0.0001,2]
[404432903,1770137034845,5000.0,0.00013559,2]
[404432904,1770137041189,462.0021302,0.00012703,2]
[404432910,1770137103514,165.68225209,0.00013273,2]
[404432914,1770137108166,500.0,0.00013273,2]
[404432918,1770137116502,325.60666149,0.00013273,2]
[404432920,1770137174269,630.43923359,0.00013559,2]
[404432921,1770137223964,500.0,0.00013273,2]
[404432922,1770137224080,500.0,0.00013273,2]
[404432923,1770137226536,500.0,0.00013273,2]
[404432927,1770137284141,500.0,0.00013273,2]
[404432928,1770137285833,500.0,0.00013273,2]
[404432929,1770137286262,500.0,0.00013273,2]
[404432930,1770137296771,1092.3495661,0.00013409,2]
[404432969,1770137309364,6447.25183098,0.00013599,2]
[404433039,1770137343955,515.95437287,0.00013273,2]
[404433108,1770137407798,444.45423005,0.00013273,2]
[404433109,1770137407820,55.54576995,0.00013273,2]
[404433175,1770137431716,-218.93819165,0.00013654,2]
[404433177,1770137431726,-338.32180835,0.00013654,2]
[404433180,1770137431737,-275.67819165,0.00013654,2]
[404433182,1770137431746,-300.0,0.00013673,2]
[404433183,1770137431755,-300.0,0.00013696,2]
[404433185,1770137431764,-264.70460164,0.00013696,2]
[404433188,1770137431775,-35.29539836,0.00013696,2]
[404433190,1770137431784,-1003.54179968,0.00013696,2]
[404433192,1770137431795,-196.45820032,0.00013696,2]
[404433194,1770137431804,-500.0,0.00013697,2]
[404433196,1770137431813,-28.7650016,0.00013697,2]
[404433764,1770137437947,-469.49706499,0.00013697,2]
[404433768,1770137438033,-5085.58327953,0.00013697,2]
[404433769,1770137438044,-2502.37575494,0.00013697,2]
[404433892,1770137444282,-520.78439888,0.00013696,2]
[404433893,1770137444291,-500.0,0.00013696,2]
[404433894,1770137444300,-500.0,0.00013696,2]
[404433895,1770137444309,-500.0,0.00013696,2]
[404433896,1770137444319,-500.0,0.00013696,2]
[404433897,1770137444327,-500.0,0.00013696,2]
[404433898,1770137444336,-431.10858888,0.00013696,2]
[404433899,1770137444345,-500.0,0.00013696,2]
[404433900,1770137444354,-500.0,0.00013696,2]
[404433901,1770137444363,-170.7856914,0.00013696,2]
[404433902,1770137444372,-500.0,0.00013696,2]
[404433903,1770137444383,-500.0,0.00013696,2]
[404433904,1770137444392,-500.0,0.00013696,2]
[404433905,1770137444402,-500.0,0.00013696,2]
[404433906,1770137444412,-500.0,0.00013696,2]
[404433907,1770137444421,-444.43005272,0.00013696,2]
[404433908,1770137444431,-500.0,0.00013696,2]
[404433909,1770137444440,-500.0,0.00013696,2]
[404433910,1770137444450,-500.0,0.00013696,2]
[404433911,1770137444460,-500.0,0.00013696,2]
[404433912,1770137444469,-557.07851728,0.00013696,2]
[404433913,1770137444478,-500.0,0.00013696,2]
[404433914,1770137444487,-500.0,0.00013696,2]
[404433915,1770137444498,-173.87621914,0.00013696,2]
[404433916,1770137444509,-500.0,0.00013696,2]
[404433917,1770137444518,-500.0,0.00013696,2]
[404433918,1770137444530,-500.0,0.00013696,2]
[404433919,1770137444542,-500.0,0.00013696,2]
[404433920,1770137444553,-500.0,0.00013696,2]
[404433921,1770137444562,-500.0,0.00013696,2]
[404433922,1770137444571,-500.0,0.00013696,2]
[404433923,1770137444580,-500.0,0.00013696,2]
[404433924,1770137444589,-216.07079756,0.00013696,2]
[404433925,1770137444598,-500.0,0.00013696,2]
[404433926,1770137444608,-500.0,0.00013696,2]
[404433927,1770137444618,-500.0,0.00013696,2]
[404433928,1770137444628,-454.44618554,0.00013697,2]
[404433929,1770137444638,-1000.0,0.00013699,2]
[404433930,1770137444647,-507.57912091,0.00013699,2]
[404433931,1770137444656,-209.53631024,0.00013699,2]
[404433932,1770137444670,-290.46368976,0.00013699,2]
[404433933,1770137444680,-500.88887402,0.00013699,2]
[404433934,1770137444689,-513.141193,0.00013699,2]
[404433935,1770137444698,-500.0,0.00013699,2]
[404433936,1770137444709,-160.39462294,0.00013699,2]
[404433937,1770137444719,-500.0,0.00013699,2]
[404433938,1770137444728,-500.0,0.00013699,2]
[404433939,1770137444740,-250.36172066,0.00013699,2]
[404433940,1770137444750,-500.0,0.00013699,2]
[404433941,1770137444761,-500.0,0.00013699,2]
[404433942,1770137444772,-160.33458198,0.00013699,2]
[404433943,1770137444782,-500.0,0.00013699,2]
[404433944,1770137444791,-500.0,0.00013699,2]
[404433945,1770137444801,-500.0,0.00013699,2]
[404433946,1770137444811,-500.0,0.00013699,2]
[404433947,1770137444820,-500.0,0.00013699,2]
[404433948,1770137444830,-500.0,0.00013699,2]
[404433949,1770137444839,-500.0,0.00013699,2]
[404433950,1770137444848,-500.0,0.00013699,2]
[404433951,1770137444858,-365.94616534,0.00013699,2]
[404433952,1770137444867,-500.0,0.00013699,2]
[404433953,1770137444876,-500.0,0.00013699,2]
[404433954,1770137444886,-502.95309348,0.00013699,2]
[404433955,1770137444895,-500.0,0.00013699,2]
[404433956,1770137444905,-500.0,0.00013699,2]
[404433957,1770137444914,-500.0,0.00013718,2]
[404433958,1770137444924,-500.0,0.0001382,2]
[404433959,1770137444933,-1000.0,0.00013821,2]
[404433960,1770137444942,-1000.0,0.00013821,2]
[404433961,1770137444951,-1000.0,0.00013821,2]
[404433962,1770137444960,-1000.0,0.00013821,2]
[404433963,1770137444970,-1000.0,0.00013821,2]
[404433964,1770137444979,-590.88003071,0.00013821,2]
[404433965,1770137444989,-1000.0,0.00013821,2]
[404433966,1770137444998,-1000.0,0.00013821,2]
[404433967,1770137445008,-169.24202811,0.00013821,2]
[404433968,1770137445020,-830.75797189,0.00013821,2]
[404433969,1770137445030,-1000.0,0.00013821,2]
[404433970,1770137445040,-509.73924692,0.00013971,2]
[404433971,1770137445051,-300.0,0.00013971,2]
[404433972,1770137445061,-300.0,0.00013971,2]
[404433973,1770137445072,-300.0,0.00013971,2]
[404433974,1770137445082,-300.0,0.00013971,2]
[404433975,1770137445093,-300.0,0.00013971,2]
[404433976,1770137445103,-300.0,0.00013971,2]
[404433977,1770137445114,-300.0,0.00013971,2]
[404433978,1770137445123,-300.0,0.00013971,2]
[404433979,1770137445133,-300.0,0.00013971,2]
[404433980,1770137445143,-300.0,0.00013971,2]
[404433982,1770137445153,-300.0,0.00013971,2]
[404433984,1770137445163,-300.0,0.00013971,2]
[404433986,1770137445172,-300.0,0.00013971,2]
[404433988,1770137445181,-300.0,0.00013971,2]
[404433991,1770137445191,-300.0,0.00013971,2]
[404433992,1770137445200,-600.0,0.00013971,2]